bitfinex/quotes_ETHUSD_20250602
["timestamp","ask_amount","ask_price","bid_price","bid_amount"]
[1748824378247,0.02,2532.9,2532.6,3.94851141]
[1748824378587,0.02,2532.9,2532.7,3.9483506]
[1748824379145,0.02,2532.9,2532.6,3.9484677]
[1748824379368,0.02,2532.9,2532.7,3.94835319]
[1748824380140,0.02,2532.9,2532.6,3.9484643]
[1748824381375,0.02,2532.9,2532.4,3.94867081]
[1748824381756,0.02,2532.9,2532.5,3.94865074]
[1748824383885,0.02,2532.9,2532.8,3.94819962]
[1748824384096,0.02,2532.9,2532.8,11.94819962]
[1748824384286,0.02,2532.9,2532.8,12.70689962]
[1748824384598,0.02,2533.9,2532.9,8.0]
[1748824384751,0.02,2533.9,2533.8,3.9466414]
[1748824385091,0.02,2533.9,2533.8,11.9466414]
[1748824385273,0.02,2533.9,2533.8,12.73598333]
[1748824386167,0.00603,2533.9,2533.8,12.73598333]
[1748824387302,0.00603,2533.9,2533.8,5.1046414]
[1748824388097,0.00603,2533.9,2533.8,3.9466414]
[1748824390198,0.00603,2533.9,2533.3,0.784]
[1748824390397,0.00603,2533.9,2533.4,3.94715947]
[1748824391584,3.94664683,2533.8,2533.3,3.94739063]
[1748824392489,3.94664683,2533.8,2533.1,11.9477201]
[1748824392490,3.95261044,2533.9,2533.2,8.0]
[1748824392796,3.94665228,2533.8,2533.3,3.94739017]
[1748824393189,3.94665228,2533.8,2533.1,3.94772329]
[1748824393190,3.94702977,2533.6,2533.1,3.94772329]
[1748824393503,3.98685863,2533.6,2533.1,3.94772329]
[1748824393702,0.0399,2533.6,2533.1,3.94772329]
[1748824393889,0.0399,2533.6,2533.2,3.94754542]
[1748824394099,0.0399,2533.6,2533.1,3.94770972]
[1748824394273,0.0399,2533.6,2533.0,5.10584092]
[1748824394473,0.0399,2533.6,2533.1,3.94765326]
[1748824394681,0.0399,2533.6,2533.2,3.94755483]
[1748824394902,0.0399,2533.6,2533.1,3.94772802]
[1748824395094,0.0399,2533.6,2533.1,1.0102728]
[1748824395601,0.0399,2533.6,2533.2,3.94749228]
[1748824395966,0.0399,2533.6,2533.3,3.94727257]
[1748824396166,0.0399,2533.6,2533.3,3.94731803]
[1748824399309,0.0399,2533.6,2533.2,3.94757618]
[1748824399475,0.0399,2533.6,2533.2,4.55916108]
[1748824399905,0.04593,2533.9,2533.3,0.03946957]
[1748824400123,0.04593,2533.9,2533.7,3.94677254]
[1748824400412,0.00603,2533.9,2533.4,0.7932]
[1748824400768,0.00603,2533.9,2533.7,3.9467218]
[1748824400969,0.00603,2533.9,2533.8,3.9466414]
[1748824401194,0.00603,2533.9,2533.8,4.73598283]
[1748824402625,0.00603,2533.9,2533.8,3.9466414]
[1748824403819,0.00603,2533.9,2533.8,5.1046414]
[1748824406531,0.00603,2533.9,2533.8,18.1118414]
[1748824407403,0.00603,2533.9,2533.8,18.1128414]
[1748824407728,0.00603,2533.9,2533.8,18.1108414]
[1748824407929,0.00603,2533.9,2533.8,20.31660309]
[1748824408826,0.00603,2533.9,2533.8,13.1046414]
[1748824410228,0.00603,2533.9,2533.5,0.7502]
[1748824410426,0.00603,2533.9,2533.2,0.8018]
[1748824410617,0.00603,2533.9,2533.5,3.94703525]
[1748824410808,0.37542874,2533.8,2533.5,3.94703525]
[1748824411008,0.00603,2533.9,2533.6,3.94694413]
[1748824411212,0.37542668,2533.8,2533.3,3.9473711]
[1748824411444,0.41534877,2533.7,2533.3,3.94741829]
[1748824411615,0.37544877,2533.6,2533.3,3.94741829]
[1748824411929,0.0399,2533.7,2533.3,3.94741829]
[1748824412231,0.37560479,2533.6,2533.2,3.94750109]
[1748824412464,0.37560479,2533.5,2533.0,1.158]
[1748824412623,0.0399,2533.7,2533.0,1.158]
[1748824412624,0.3758511,2533.4,2533.1,3.94772854]
[1748824412801,0.3758511,2533.3,2533.1,3.94772854]
[1748824412996,4.45656713,2533.7,2533.1,8.0]
[1748824413233,4.41685699,2533.6,2533.0,5.10577338]
[1748824413501,4.41707189,2533.5,2533.0,1.158]
[1748824413717,4.41707189,2533.5,2533.0,5.10581122]
[1748824414128,0.37584777,2533.4,2533.0,5.10581122]
[1748824414335,0.37584777,2533.3,2533.0,5.10581122]
[1748824414501,0.0399,2533.1,2532.6,8.0]
[1748824414704,0.0399,2533.1,2532.7,1.158]
[1748824415239,4.32387936,2533.0,2532.5,4.85630641]
[1748824415423,5.7466788,2533.1,2532.3,12.4779689]
[1748824415424,0.37596404,2532.9,2532.3,12.4779689]
[1748824415737,0.37596404,2532.8,2532.4,3.94881552]
[1748824415942,0.37596404,2532.7,2532.4,3.94881552]
[1748824416240,0.37596404,2532.6,2532.4,3.94881552]
[1748824416441,0.46995505,2533.0,2532.3,8.529]
[1748824416739,10.07030377,2532.9,2532.2,3.94912203]
[1748824416940,4.32388623,2532.8,2532.1,3.94921331]
[1748824417270,4.32402512,2532.7,2532.2,3.94910802]
[1748824417439,0.37558123,2532.6,2532.3,3.94897878]
[1748824417607,0.37558123,2532.5,2532.2,3.9490777]
[1748824417810,0.37530911,2532.4,2532.1,3.94928874]
[1748824418009,0.37531014,2532.3,2532.1,3.94928874]
[1748824418209,3.94860596,2532.6,2532.1,3.94928874]
[1748824418560,0.3753073,2532.5,2532.1,3.94928874]
[1748824418868,0.3753073,2532.4,2532.1,3.94928874]
[1748824419041,3.94860596,2532.6,2532.1,3.94928874]
[1748824419241,0.37501253,2532.5,2532.1,3.94928874]
[1748824419452,3.94860596,2532.6,2532.1,3.94928874]
[1748824419653,0.37480067,2532.5,2532.1,3.94928874]
[1748824419856,3.98817303,2532.8,2532.1,3.94925525]
[1748824420051,0.3748093,2532.7,2532.6,3.94851141]
[1748824420356,0.3748093,2532.7,2532.4,3.94872384]
[1748824420563,0.3748093,2532.6,2532.4,3.94872384]
[1748824420766,0.0399,2532.8,2532.4,3.94872384]
[1748824420969,0.37462042,2532.7,2532.2,3.94902759]
[1748824421172,0.37462042,2532.6,2532.1,3.94925327]
[1748824421475,3.98821745,2532.8,2532.3,3.94897088]
[1748824421678,0.37449275,2532.7,2532.3,3.94897088]
[1748824421975,0.37449275,2532.6,2532.2,3.94899483]
[1748824422277,3.98813197,2532.8,2532.3,3.94897497]
[1748824422577,0.37432733,2532.7,2532.3,3.94897497]
[1748824422771,3.98813197,2532.8,2532.3,3.94897497]
[1748824422936,0.37432843,2532.7,2532.3,3.94897497]
[1748824423136,3.98813197,2532.8,2532.3,3.94897497]
[1748824423471,0.37432714,2532.7,2532.2,3.94905379]
[1748824423875,0.37432714,2532.7,2532.2,3.9490506]
[1748824424072,0.37432714,2532.7,2532.1,3.94924703]
[1748824424474,3.9483562,2532.7,2532.2,3.94905693]
[1748824425290,4.36250123,2532.8,2532.3,3.9489458]
[1748824425485,3.94835957,2532.7,2532.2,3.94904188]
[1748824426194,4.3621855,2532.8,2532.3,3.9489631]
[1748824426758,3.98817361,2532.8,2532.3,3.9489631]
[1748824426948,4.36203544,2532.8,2532.3,3.9489631]
[1748824427150,3.98817361,2532.8,2532.3,3.9489631]
[1748824428088,0.0399,2532.8,2532.5,3.94857779]
[1748824429157,0.0399,2532.8,2532.4,3.94867315]
[1748824429383,0.0399,2532.8,2532.5,3.94865912]
[1748824429793,0.0399,2532.8,2532.4,3.94874296]
[1748824430096,0.0399,2532.8,2532.2,3.94909039]
[1748824430297,0.0399,2532.8,2532.4,3.94879995]
[1748824430505,0.0399,2532.8,2532.6,3.94839599]
[1748824431497,0.0399,2532.8,2532.5,3.94855621]
[1748824431795,0.0399,2532.8,2532.4,3.9487777]
[1748824431796,0.0399,2532.8,2532.7,3.9483555]
[1748824432001,0.42771348,2533.1,2532.9,3.94798261]
[1748824432211,4.2069,2533.1,2532.9,3.94798261]
[1748824432514,0.0399,2533.1,2532.9,3.94794423]
[1748824432676,0.0399,2533.1,2533.0,3.94788787]
[1748824432878,0.0399,2533.3,2533.1,3.94767256]
[1748824433076,10.61670923,2533.9,2533.3,3.94732199]
[1748824433077,4.32055223,2533.8,2533.3,3.94732199]
[1748824433274,12.2059,2533.7,2533.3,3.94732199]
[1748824433586,11.98672997,2533.7,2533.2,3.94749627]
[1748824433785,4.2059,2533.7,2533.2,3.94757618]
[1748824434305,8.15273653,2533.7,2533.2,3.94757618]
[1748824434458,8.54669529,2533.7,2533.2,3.94757618]
[1748824435098,4.59985876,2533.7,2533.3,3.94737871]
[1748824435404,4.9739629,2533.7,2533.3,3.94737871]
[1748824435617,3.9470376,2533.6,2533.1,3.94769476]
[1748824435909,9.65380783,2533.6,2533.1,3.94772877]
[1748824436108,0.0399,2533.4,2532.8,3.9480748]
[1748824436313,4.165,2533.3,2533.0,3.94786689]
[1748824436482,4.165,2533.3,2533.1,3.94764711]
[1748824436690,4.165,2533.3,2533.2,3.94757618]
[1748824437507,4.165,2533.3,2533.1,3.94764639]
[1748824437704,0.37444163,2533.5,2533.2,3.94756854]
[1748824438009,0.41468229,2533.6,2533.2,3.94756854]
[1748824438413,4.36165089,2533.6,2533.1,3.94764616]
[1748824438704,0.37478217,2533.5,2533.1,3.94764616]
[1748824439518,0.37478217,2533.4,2533.1,3.94764616]
[1748824439717,0.37478217,2533.4,2533.0,3.947832]
[1748824439718,0.37478217,2533.5,2533.2,3.94754478]
[1748824439921,0.37478217,2533.4,2533.2,3.94754478]
[1748824440076,0.37478217,2533.5,2533.2,3.94754478]
[1748824440277,0.37478217,2533.4,2533.1,3.94764864]
[1748824440484,3.98686136,2533.6,2533.1,3.94764864]
[1748824440691,0.37556484,2533.5,2533.1,3.94762391]
[1748824440985,5.7466788,2533.3,2532.7,3.94825954]
[1748824441177,3.94759486,2533.2,2532.8,3.94819942]
[1748824441378,3.94778442,2533.1,2532.6,3.94847427]
[1748824441778,0.37573873,2533.0,2532.6,3.94847427]
[1748824441979,4.16,2533.2,2532.4,1.14]
[1748824442180,0.37573922,2533.1,2532.8,3.94809231]
[1748824442381,0.37573922,2533.0,2532.8,3.94809231]
[1748824442617,4.16,2533.2,2532.8,3.94809231]
[1748824442820,0.3759113,2533.1,2532.8,3.94809231]
[1748824443027,0.3759113,2533.0,2532.7,3.94825623]
[1748824443188,8.10765419,2533.2,2532.7,3.94834942]
[1748824443386,0.37593722,2533.1,2532.8,3.94819369]
[1748824443667,0.37593722,2533.0,2532.8,3.94819369]
[1748824443809,4.16,2533.2,2532.8,3.94819369]
[1748824444014,0.37601369,2533.1,2532.8,3.94819369]
[1748824444249,0.37601369,2533.0,2532.8,3.94819369]
[1748824444456,4.16,2533.2,2532.8,3.94819369]
[1748824444653,0.37607934,2533.1,2532.7,3.94827142]
[1748824444842,0.37607934,2533.0,2532.7,3.94827142]
[1748824445050,4.16,2533.2,2532.6,3.94848617]
[1748824445245,4.32382609,2533.1,2532.6,3.94842888]
[1748824445433,0.37610411,2533.0,2532.6,3.94842888]
[1748824445616,8.1076427,2533.2,2532.7,3.94833793]
[1748824445817,0.37610402,2533.1,2532.7,3.94833793]
[1748824446049,0.37610402,2533.0,2532.7,3.94833793]
[1748824446254,0.37610402,2532.9,2532.7,3.94833793]
[1748824446547,3.98795184,2532.9,2532.4,4.95057084]
[1748824446852,3.98795184,2532.9,2532.6,3.9484361]
[1748824446853,0.37608629,2532.8,2532.6,3.9484361]
[1748824447014,0.37606404,2532.7,2532.6,3.9484361]
[1748824447437,0.0399,2532.9,2532.7,3.94834674]
[1748824447639,0.37606708,2532.8,2532.7,3.94834674]
[1748824447877,0.0399,2533.2,2532.8,3.94818531]
[1748824448079,0.37608921,2533.1,2533.0,3.94785665]
[1748824448240,4.154,2533.4,2532.8,3.94818602]
[1748824448437,0.0399,2533.5,2532.6,0.8004]
[1748824448666,8.9039889,2533.7,2533.0,3.9478196]
[1748824448866,0.37617115,2533.6,2533.1,0.8093]
[1748824449142,0.37617115,2533.5,2533.4,3.94726454]
[1748824449349,0.00603,2533.9,2533.8,3.9466414]
[1748824449551,0.38220442,2533.9,2533.8,3.9466414]
[1748824450955,0.38220442,2533.9,2533.7,3.94676436]
[1748824451251,0.38220442,2533.9,2533.6,3.94695218]
[1748824451252,0.37617442,2533.8,2533.6,3.94695218]
[1748824451452,0.00603,2533.9,2533.6,3.94695218]
[1748824451737,0.37596842,2533.8,2533.6,3.94695218]
[1748824451972,0.00603,2533.9,2533.6,3.94695218]
[1748824452174,0.37596358,2533.8,2533.6,3.94695218]
[1748824452479,0.41575473,2533.7,2533.3,3.94740097]
[1748824452780,0.0399,2533.7,2533.3,3.94740097]
[1748824452945,0.0399,2533.7,2533.4,3.94714863]
[1748824453146,0.0399,2533.7,2533.5,3.94708982]
[1748824453663,0.0399,2533.7,2533.2,3.94755397]
[1748824453989,0.0399,2533.7,2533.4,3.94724908]
[1748824454537,0.0399,2533.7,2533.3,3.94735354]
[1748824455480,3.94718721,2533.5,2533.0,3.94781612]
[1748824455691,0.37584117,2533.4,2533.0,3.94781612]
[1748824455847,0.37582829,2533.3,2533.0,3.94781612]
[1748824456049,3.94718721,2533.5,2533.0,3.94781612]
[1748824456242,0.37582686,2533.4,2532.9,5.06396164]
[1748824456458,5.7067788,2533.6,2533.3,3.94735095]
[1748824456782,0.37590301,2533.5,2533.1,3.94758515]
[1748824457085,0.37590301,2533.4,2533.1,3.94758515]
[1748824457380,0.37590301,2533.3,2533.1,3.94758515]
[1748824457581,4.45659094,2533.7,2533.1,3.9477106]
[1748824457789,4.32294702,2533.6,2533.0,3.9478115]
[1748824457989,0.37598426,2533.5,2533.0,3.9478115]
[1748824458146,0.37598426,2533.4,2533.0,3.9478115]
[1748824458342,0.37598426,2533.3,2533.1,3.94770195]
[1748824458649,3.94714947,2533.5,2533.0,3.94780775]
[1748824458879,4.32334601,2533.4,2532.9,3.94798846]
[1748824459058,4.32348607,2533.3,2532.8,3.94812854]
[1748824459255,0.37604531,2533.2,2532.8,3.94812555]
[1748824459455,0.0399,2532.9,2532.1,1.115]
[1748824459668,4.32417362,2532.8,2532.3,3.94888667]
[1748824459870,4.32417362,2532.8,2532.1,5.06427536]
[1748824459871,3.94819962,2532.8,2532.2,3.94905539]
[1748824460170,3.94819962,2532.8,2532.1,5.06427536]
[1748824460171,0.37591316,2532.7,2532.3,3.94895929]
[1748824460375,3.94827815,2532.8,2532.3,3.94895929]
[1748824460547,0.37590717,2532.7,2532.3,3.94895929]
[1748824460748,0.0399,2532.9,2532.1,1.115]
[1748824461078,4.32411071,2532.8,2532.2,4.86048108]
[1748824461282,0.37590645,2532.7,2532.2,4.86048108]
[1748824461467,3.94820426,2532.8,2532.3,3.94891866]
[1748824461665,0.37588781,2532.7,2532.3,3.94891866]
[1748824461871,4.33351782,2532.8,2532.3,3.94891866]
[1748824462086,0.3758828,2532.7,2532.2,3.94910717]
[1748824462422,4.33351497,2532.8,2532.3,3.94886342]
[1748824462624,4.32430503,2532.7,2532.1,3.94918583]
[1748824462834,0.0399,2532.5,2531.9,1.8748]
[1748824463138,0.37579729,2532.4,2531.9,1.116]
[1748824463293,3.98861433,2532.5,2531.9,1.116]
[1748824463493,4.32442443,2532.4,2531.9,5.06558097]
[1748824463830,3.94886804,2532.4,2531.9,5.06558097]
[1748824464231,5.7067788,2532.4,2531.8,3.94967465]
[1748824464433,0.0399,2532.3,2531.7,3.94979169]
[1748824464732,3.98898941,2532.3,2531.7,3.94991507]
[1748824465035,0.37537777,2532.2,2531.7,3.94991507]
[1748824465234,8.09922954,2532.2,2531.6,3.95006367]
[1748824465400,8.09922954,2532.2,2531.4,3.95023655]
[1748824465401,8.09919639,2532.2,2531.5,3.95019493]
[1748824465791,4.15,2532.2,2531.5,1.38445949]
[1748824465991,4.15,2532.2,2531.7,3.94978435]
[1748824466224,4.55267051,2532.2,2531.7,3.94978435]
[1748824466792,4.55267051,2532.2,2531.9,3.94952811]
[1748824467112,4.55267051,2532.2,2531.8,3.94969057]
[1748824467646,4.55267051,2532.2,2531.7,3.94985129]
[1748824468001,4.55267051,2532.2,2531.8,3.9497466]
[1748824468199,4.55267051,2532.2,2531.9,3.94959742]
[1748824468401,0.40267051,2532.2,2531.9,3.94955139]
[1748824468647,4.1879,2532.3,2532.0,3.94932133]
[1748824469542,0.0399,2532.3,2532.0,3.94932133]
[1748824470154,0.0399,2532.3,2531.8,0.7761]
[1748824470478,0.0399,2532.3,2531.5,4.936]
[1748824470775,0.0399,2532.3,2531.8,3.94963426]
[1748824470954,9.65631902,2532.0,2531.5,3.95014034]
[1748824471117,0.0399,2531.9,2531.6,3.94999164]
[1748824472472,0.0399,2531.9,2531.1,0.02]
[1748824472750,0.0399,2531.4,2531.1,0.02]
[1748824472928,13.84813571,2531.4,2531.1,0.02]
[1748824473124,9.8976788,2531.4,2531.1,3.97084457]
[1748824473337,9.8976788,2531.4,2531.1,0.02]
[1748824473668,4.1909,2531.4,2531.1,0.02]
[1748824474230,4.1909,2531.4,2531.1,3.97079226]
[1748824474434,4.1909,2531.4,2531.1,0.02]
[1748824475342,4.58836945,2531.4,2531.1,0.02]
[1748824476174,0.43736945,2531.4,2531.1,0.02]
[1748824476379,4.58436945,2531.4,2531.1,0.02]
[1748824476524,3.95069532,2531.2,2531.1,0.02]
[1748824477235,0.55,2531.2,2529.9,3.95259205]
[1748824477449,9.65803909,2530.9,2530.1,5.283]
[1748824477628,3.95140702,2530.8,2530.3,3.95205853]
[1748824477845,3.95140702,2530.8,2530.2,3.95212959]
[1748824478268,0.0699,2530.5,2530.1,0.02]
[1748824478473,4.2219,2530.5,2530.1,0.02]
[1748824478776,12.02215673,2530.2,2530.1,0.02]
[1748824479126,12.57215673,2530.2,2530.1,0.02]
[1748824479523,15.31421729,2530.2,2530.1,0.02]
[1748824479723,12.94421729,2530.2,2530.1,0.02]
[1748824480344,12.94380243,2530.2,2530.1,0.02]
[1748824480533,12.57215673,2530.2,2530.1,0.02]
[1748824480733,16.72615673,2530.2,2530.1,0.02]
[1748824481939,17.09747396,2530.2,2530.1,0.02]
[1748824483044,27.34747396,2530.2,2530.1,0.02]
[1748824483458,24.97747396,2530.2,2530.1,0.02]
[1748824484032,20.82347396,2530.2,2530.1,0.02]
[1748824484232,24.60315673,2530.2,2530.1,0.02]
[1748824485342,24.97391521,2530.2,2530.1,0.02]
[1748824487170,0.44065848,2530.2,2530.1,0.02]
[1748824487333,4.02215673,2530.2,2530.1,0.02]
[1748824487537,17.72893553,2530.2,2530.1,0.02]
[1748824488374,20.64893553,2530.2,2530.1,0.02]
[1748824488575,0.55,2529.6,2529.1,0.02]
[1748824488776,2.37,2529.5,2529.1,3.97382185]
[1748824489466,6.32335491,2529.5,2529.1,0.02]
[1748824489770,8.0,2529.3,2529.1,0.02]
[1748824489960,11.95373507,2529.3,2529.1,0.02]
[1748824490560,8.0,2529.3,2529.1,0.02]
[1748824490761,8.0699,2529.9,2529.2,0.82]
[1748824490945,8.0699,2529.9,2529.2,4.77377223]
[1748824490946,8.17172974,2529.9,2529.2,4.77377223]
[1748824491152,8.17172974,2529.9,2529.3,3.95352155]
[1748824491459,13.87850854,2529.9,2529.3,3.95352155]
[1748824492040,5.7766788,2529.9,2529.5,3.95332167]
[1748824492366,10.22610625,2529.9,2529.5,3.95332167]
[1748824492569,4.148,2529.9,2529.6,3.95317921]
[1748824492771,0.49581888,2530.3,2529.7,0.8204]
[1748824492971,0.44140243,2530.5,2530.2,3.95219603]
[1748824493174,0.44140243,2530.5,2530.1,3.95228914]
[1748824493360,0.39576646,2530.6,2530.1,3.95228914]
[1748824493681,11.95163275,2530.6,2530.1,3.95228914]
[1748824494203,5.7067788,2530.3,2529.7,0.8204]
[1748824494507,3.95312691,2529.7,2529.1,0.7834]
[1748824494663,12.02963883,2529.9,2529.2,3.95381938]
[1748824494853,3.95288882,2529.8,2529.3,3.95356244]
[1748824495199,0.37181387,2529.8,2529.1,0.7834]
[1748824495376,16.11059597,2530.0,2529.5,3.95320715]
[1748824495546,4.32464894,2529.9,2529.2,3.95381938]
[1748824495745,3.95295453,2529.8,2529.1,0.7834]
[1748824495979,4.32461813,2529.9,2529.4,3.9534231]
[1748824496301,0.3719197,2529.8,2529.4,3.95335519]
[1748824496447,0.3719197,2529.9,2529.4,3.95335519]
[1748824496648,0.3719197,2529.8,2529.5,3.95333516]
[1748824496851,4.32464876,2529.9,2529.4,3.95343709]
[1748824497041,0.3719197,2529.8,2529.4,3.95343709]
[1748824497249,0.3719197,2529.7,2529.3,3.95363275]
[1748824498154,0.3719197,2529.6,2529.4,3.95349737]
[1748824498367,0.3719197,2529.8,2529.4,3.95349737]
[1748824498563,3.95349972,2529.5,2529.1,0.02]
[1748824498966,0.37249411,2529.4,2529.1,0.02]
[1748824499168,3.95349972,2529.5,2529.1,0.02]
[1748824499498,0.37277436,2529.4,2529.1,0.02]
[1748824499696,3.95349972,2529.5,2529.1,0.02]
[1748824499895,6.07964549,2529.4,2529.1,0.02]
[1748824500121,8.37286669,2529.3,2529.1,0.02]
[1748824500297,0.37286669,2529.2,2529.1,3.97397572]
[1748824500509,0.37315309,2529.2,2529.1,4.75267572]
[1748824500807,4.32702561,2529.2,2529.1,0.02]
[1748824501016,19.47992561,2529.2,2529.1,0.02]
[1748824502076,3.95461502,2528.7,2528.2,3.95527977]
[1748824502409,0.37320623,2528.6,2528.5,3.95491398]
[1748824502710,0.46700487,2529.2,2528.7,3.95460117]
[1748824502920,0.46703057,2529.3,2529.2,3.95381938]
[1748824503075,0.46703057,2529.6,2529.4,3.95350676]
[1748824503417,10.12724854,2529.5,2528.8,0.7903]
[1748824503586,3.95352241,2529.4,2528.9,3.9541788]
[1748824503916,0.46703057,2529.5,2529.3,3.95366096]
[1748824504074,10.34380937,2529.6,2528.8,0.7903]
[1748824504279,10.19747539,2529.3,2528.8,0.7903]
[1748824504513,0.46703057,2529.2,2528.7,3.95451303]
[1748824504722,4.42101802,2529.1,2528.6,3.95475549]
[1748824504901,0.46703057,2529.1,2528.6,3.95475549]
[1748824505101,4.4211104,2529.1,2528.5,0.7587]
[1748824505307,0.46703057,2529.0,2528.5,0.7587]
[1748824505610,0.46703057,2529.0,2528.5,0.47137686]
[1748824505809,0.46703057,2529.0,2528.7,3.95444783]
[1748824506115,0.46703057,2529.0,2528.5,0.47137686]
[1748824506329,0.46703057,2528.9,2528.8,3.95444479]
[1748824507014,0.46703057,2529.0,2528.9,3.95428842]
[1748824507308,0.62267316,2529.1,2528.9,3.95428842]
[1748824507509,0.62267316,2529.1,2529.0,3.95413206]
[1748824507730,0.62267316,2529.2,2529.1,3.95397572]
[1748824508098,0.46923855,2529.3,2529.2,3.95381938]
[1748824508295,4.02263517,2529.9,2529.2,3.95381938]
[1748824508296,0.62267316,2529.4,2529.2,3.95372253]
[1748824508501,0.62267316,2529.4,2529.3,3.95366306]
[1748824508701,0.62267316,2529.5,2529.4,3.95350676]
[1748824508941,3.95229768,2530.2,2529.5,3.95335046]
[1748824508942,0.62267316,2529.7,2529.5,3.95335046]
[1748824509116,0.46972806,2529.7,2529.4,1.59341698]
[1748824509440,0.46972806,2529.7,2529.6,3.95319418]
[1748824511011,0.46972806,2529.9,2529.8,3.95288165]
[1748824511213,0.46972806,2530.0,2529.9,3.9527254]
[1748824511413,0.46972806,2530.1,2530.0,3.95256916]
[1748824511818,0.62267316,2530.3,2530.1,3.95233783]
[1748824512019,0.62267316,2530.3,2530.2,3.95225673]
[1748824512215,0.62267316,2530.4,2530.2,3.95225673]
[1748824512531,0.62267316,2530.4,2530.1,3.95232938]
[1748824512742,0.46952227,2530.2,2530.1,3.95232938]
[1748824512905,0.46952227,2530.2,2530.1,4.81967709]
[1748824513103,0.46952227,2530.3,2530.2,3.95225673]
[1748824513541,0.46938261,2530.3,2530.2,3.95225673]
[1748824513942,0.46939649,2530.3,2530.2,3.95217486]
[1748824514318,0.46939649,2530.4,2530.2,3.95217486]
[1748824514739,0.37541629,2530.3,2530.2,3.95217486]
[1748824515038,0.37541629,2530.3,2529.9,0.7686]
[1748824515209,0.37541629,2530.2,2529.7,3.9530379]
[1748824515542,6.63513378,2530.1,2529.3,0.8148]
[1748824515740,0.55,2529.7,2528.9,4.76904468]
[1748824515903,3.95347456,2529.5,2529.0,3.95410492]
[1748824516110,0.37526135,2529.4,2529.0,3.95410492]
[1748824516344,0.37526135,2529.3,2529.0,3.95410492]
[1748824516534,0.37526135,2529.2,2529.1,3.95397572]
[1748824516851,0.46907669,2529.7,2529.5,3.95335046]
[1748824517005,0.37518408,2529.6,2529.2,3.95370142]
[1748824517205,0.37518408,2529.5,2529.2,3.95370903]
[1748824517444,0.37518408,2529.4,2529.2,3.95370903]
[1748824517650,0.37518408,2529.3,2529.2,3.95370903]
[1748824518339,0.37518408,2529.3,2528.9,4.76905899]
[1748824518536,4.2459,2529.4,2528.6,0.7822]
[1748824518707,0.37520156,2529.3,2528.6,0.7822]
[1748824518909,0.37520156,2529.2,2528.9,3.95427782]
[1748824519233,0.37520156,2529.1,2528.9,3.95427782]
[1748824519433,4.2459,2529.4,2529.0,3.95408226]
[1748824519626,0.37518135,2529.3,2529.0,3.95408226]
[1748824519951,0.37518135,2529.2,2529.0,3.95406773]
[1748824520110,0.37518135,2529.1,2529.0,3.95406773]
[1748824520746,4.2459,2529.4,2529.0,3.95406773]
[1748824520946,0.37520135,2529.3,2529.0,3.95406773]
[1748824521152,0.37520135,2529.2,2529.0,3.95406773]
[1748824521312,0.0699,2529.4,2529.2,3.9537354]
[1748824521514,0.37518798,2529.3,2529.2,3.9537354]
[1748824521823,4.64907669,2529.8,2529.4,3.95337027]
[1748824522016,0.37520202,2529.7,2529.4,3.95337027]
[1748824522216,0.37520202,2529.6,2529.5,3.95335046]
[1748824524378,0.37520202,2529.6,2529.2,3.95376259]
[1748824524565,0.37533166,2529.5,2529.2,3.95376259]
[1748824524880,6.32295006,2529.8,2529.3,3.95358223]
[1748824525031,6.32295006,2529.8,2529.3,0.79073858]
[1748824525032,0.37533023,2529.7,2529.3,0.79073858]
[1748824525232,0.53906457,2530.3,2529.4,0.7777]
[1748824525459,4.55535592,2530.2,2529.4,0.7777]
[1748824525662,4.32778531,2530.1,2529.6,3.95304215]
[1748824525981,0.37535592,2530.0,2529.6,3.95304215]
[1748824526178,0.37535592,2529.9,2529.6,3.95304215]
[1748824526391,6.32242939,2530.1,2529.6,3.95304215]
[1748824526676,3.95272706,2529.9,2529.4,4.73115387]
[1748824526881,0.37533253,2529.8,2529.6,3.95319092]
[1748824527041,0.37534319,2529.9,2529.6,3.95319092]
[1748824527242,2.37,2530.0,2529.6,3.95319092]
[1748824527442,0.37531979,2529.9,2529.5,3.95332166]
[1748824527650,2.37,2530.0,2529.5,3.95332166]
[1748824527852,0.37531254,2529.9,2529.6,3.95312018]
[1748824528046,2.37,2530.0,2529.7,3.95303719]
[1748824528268,0.37530753,2529.9,2529.8,3.95286943]
[1748824528461,4.176,2530.0,2529.9,3.95270235]
[1748824528781,0.37527788,2530.1,2529.5,3.95332873]
[1748824528782,2.74529012,2530.1,2529.5,3.95326311]
[1748824528995,10.87288604,2530.0,2529.5,3.95326311]
[1748824529195,6.545,2530.0,2529.6,3.95314817]
[1748824529502,6.92027196,2530.0,2529.6,3.95314817]
[1748824529801,6.32299821,2529.8,2529.3,3.95356654]
[1748824529980,6.32299821,2529.8,2529.0,0.8002]
[1748824529981,0.37514952,2529.8,2529.0,0.8002]
[1748824530201,0.44504952,2529.9,2529.1,4.42942425]
[1748824530371,2.74514952,2529.8,2529.5,3.95329675]
[1748824531113,2.74514952,2529.8,2529.4,3.95344869]
[1748824531897,2.37,2529.8,2529.4,3.95344869]
[1748824532260,0.37554791,2529.7,2529.4,3.95344869]
[1748824532593,2.4399,2529.9,2529.5,3.95333284]
[1748824532769,0.37557672,2529.8,2529.5,3.95333284]
[1748824533065,0.37557672,2529.7,2529.5,3.95333284]
[1748824533272,6.39263204,2529.9,2529.4,3.9534342]
[1748824533605,6.39263204,2529.9,2529.5,3.95335025]
[1748824533606,0.37558345,2529.8,2529.5,3.95335025]
[1748824533774,0.37558345,2529.7,2529.5,3.95335025]
[1748824533970,0.0699,2529.9,2529.5,3.95335025]
[1748824534170,2.7455838,2529.8,2529.5,3.95335025]
[1748824534491,0.3755838,2529.7,2529.5,3.95335025]
[1748824534696,2.37,2529.8,2529.5,3.95335025]
[1748824534996,0.37560694,2529.7,2529.5,3.95335025]
[1748824535199,6.39263811,2529.9,2529.4,3.9534336]
[1748824535397,2.7457181,2529.8,2529.4,3.9534336]
[1748824535693,2.37,2529.5,2528.6,8.7644]
[1748824535900,2.37,2529.2,2528.6,0.7644]
[1748824536054,0.0699,2529.4,2528.6,3.95464668]
[1748824536055,2.37,2529.0,2528.6,3.95464668]
[1748824536502,2.37,2529.0,2528.8,3.95442644]
[1748824536670,2.37,2529.3,2528.4,1.9062]
[1748824536870,1.08937164,2529.7,2528.9,0.7762]
[1748824537059,4.178,2529.4,2529.1,3.95389328]
[1748824537460,0.37579839,2529.3,2529.1,3.95389328]
[1748824537709,4.178,2529.4,2529.1,3.95389328]
[1748824538011,2.74577864,2529.3,2529.0,3.95400459]
[1748824538215,2.37,2529.3,2529.0,3.95400459]
[1748824538377,2.37,2529.3,2528.9,3.95428045]